bitfinex-derivatives/quotes_ETHF0:USTF0_20250607
["timestamp","ask_amount","ask_price","bid_price","bid_amount"]
[1749324304351,0.0748641,2522.4,2522.3,0.79256]
[1749324304549,1.2299469,2522.4,2522.3,0.79256]
[1749324304854,2.0225069,2522.4,2522.3,0.79256]
[1749324305046,4.0198069,2522.4,2522.3,0.79256]
[1749324305752,4.0197769,2522.4,2522.3,0.79256]
[1749324306152,3.22737843,2522.4,2522.3,0.79256]
[1749324307452,4.01990843,2522.4,2522.3,0.79256]
[1749324307649,3.15846671,2522.4,2522.3,0.79256]
[1749324310749,3.22737843,2522.4,2522.3,0.79256]
[1749324311857,4.01990843,2522.4,2522.3,0.79256]
[1749324312055,3.22737843,2522.4,2522.3,0.79256]
[1749324312357,3.22737843,2522.4,2522.1,0.79263]
[1749324312656,1.94778433,2522.3,2522.2,0.79258]
[1749324312857,3.33058433,2522.3,2522.2,0.79258]
[1749324314057,2.53801433,2522.3,2522.2,0.79258]
[1749324314461,3.33057433,2522.3,2522.2,0.79258]
[1749324315461,2.53801433,2522.3,2522.2,0.79258]
[1749324315958,3.33057433,2522.3,2522.2,0.79258]
[1749324319053,2.53801433,2522.3,2521.9,2.67457238]
[1749324319258,0.79263,2522.2,2522.1,0.7926]
[1749324320364,0.79265,2522.1,2522.0,0.79263]
[1749324320562,0.6687,2522.1,2522.0,0.79263]
[1749324321154,0.79258,2522.3,2522.2,0.7926]
[1749324321356,1.83734376,2522.3,2522.2,0.7926]
[1749324322359,4.60795238,2522.4,2522.3,0.79256]
[1749324322562,5.77655401,2522.4,2522.3,0.79256]
[1749324324165,6.56908401,2522.4,2522.3,0.79256]
[1749324324463,5.77655401,2522.4,2522.3,0.79256]
[1749324325559,6.56908401,2522.4,2522.3,0.79256]
[1749324327762,5.77655401,2522.4,2522.2,0.6788]
[1749324327969,5.40051238,2522.4,2522.3,0.79256]
[1749324328156,6.56940706,2522.4,2522.3,0.79256]
[1749324328461,5.77684706,2522.4,2522.3,0.79256]
[1749324328763,6.56943581,2522.4,2522.3,0.79256]
[1749324329467,5.77690581,2522.4,2522.3,0.79256]
[1749324330166,1.17490581,2522.4,2522.3,0.79256]
[1749324330465,1.17490581,2522.4,2522.3,1.47356]
[1749324330657,1.96743581,2522.4,2522.3,1.47356]
[1749324332166,1.17490581,2522.4,2522.3,1.47356]
[1749324333470,5.77690581,2522.4,2522.3,1.47356]
[1749324333765,5.77690581,2522.4,2522.3,2.78376]
[1749324335068,5.84581753,2522.4,2522.3,2.78376]
[1749324340371,5.84581753,2522.4,2522.3,1.47356]
[1749324342172,6.63834753,2522.4,2522.3,1.47356]
[1749324344371,5.4693941,2522.4,2522.3,1.47356]
[1749324344671,6.63054282,2522.4,2522.3,1.47356]
[1749324347772,5.83801282,2522.4,2522.3,1.47356]
[1749324347967,4.6768641,2522.4,2522.3,1.47356]
[1749324348273,5.83778086,2522.4,2522.3,1.47356]
[1749324348571,5.83778086,2522.4,2522.3,2.79206]
[1749324349877,4.6768641,2522.4,2522.3,2.79206]
[1749324350172,1.23582806,2522.4,2522.3,2.79206]
[1749324351275,0.0748641,2522.4,2522.3,2.79206]
[1749324366079,23.974,2524.0,2522.4,1.98134]
[1749324366285,1.83195373,2523.1,2523.0,0.79234]
[1749324367187,1.83195373,2523.1,2522.9,1.42476]
[1749324367387,0.6722,2523.1,2522.9,0.79237]
[1749324367687,1.3586,2523.0,2522.9,0.79237]
[1749324367982,2.51786518,2523.0,2522.9,0.79237]
[1749324368682,0.6722,2523.1,2523.0,0.79234]
[1749324368881,1.83125934,2523.1,2523.0,0.79234]
[1749324369699,1.83248598,2523.1,2523.0,0.79234]
[1749324372295,2.62479598,2523.1,2523.0,0.79234]
[1749324374498,3.2078,2523.8,2523.1,1.98078]
[1749324374697,0.6901,2523.6,2523.5,0.79219]
[1749324375001,1.85121814,2523.6,2523.5,0.79219]
[1749324375191,0.6901,2523.6,2523.5,0.79219]
[1749324380301,3.2078,2523.8,2523.7,0.79212]
[1749324380498,0.6541,2524.3,2524.2,0.79197]
[1749324381199,0.6541,2524.3,2523.8,4.4998]
[1749324381400,0.6541,2524.3,2524.2,0.79197]
[1749324381401,2.82185,2524.3,2524.2,0.79197]
[1749324382097,0.79198,2524.2,2524.1,0.79197]
[1749324382305,0.79201,2524.1,2524.0,0.79201]
[1749324382500,4.5993,2524.2,2523.6,2.61618]
[1749324382695,2.0456,2524.0,2523.9,0.79206]
[1749324382897,2.83763,2524.0,2523.9,0.79206]
[1749324383298,2.0456,2524.0,2523.9,0.79206]
[1749324383496,0.6541,2524.0,2523.9,0.79206]
[1749324387603,3.2078,2524.2,2524.1,0.792]
[1749324390711,0.689,2524.4,2524.3,0.79194]
[1749324391011,1.48091,2524.4,2524.3,0.79194]
[1749324391213,3.2078,2524.6,2524.5,0.79187]
[1749324392811,3.99967,2524.6,2524.4,1.48047]
[1749324393205,3.99967,2524.6,2524.5,0.79187]
[1749324394014,0.79187,2524.5,2524.4,1.48048]
[1749324394312,0.79187,2524.5,2524.4,2.86518]
[1749324395005,0.79187,2524.5,2524.4,2.0733]
[1749324395511,0.79187,2524.5,2524.4,2.86521]
[1749324397215,0.79187,2524.5,2524.4,2.0733]
[1749324397514,0.79187,2524.5,2524.4,2.86521]
[1749324398413,1.97969,2524.5,2523.8,22.615]
[1749324398615,0.792,2524.2,2524.1,0.6403]
[1749324403618,0.79203,2524.0,2523.9,0.6772]
[1749324403913,0.79212,2523.7,2523.6,0.6653]
[1749324405210,0.79212,2523.7,2523.6,1.45746]
[1749324405710,0.79212,2523.7,2523.6,0.6653]
[1749324406215,0.79219,2523.5,2523.4,0.6884]
[1749324406419,0.79219,2523.5,2523.4,2.16792]
[1749324406610,0.79225,2523.3,2523.2,0.00595238]
[1749324408917,0.79225,2523.3,2523.2,0.79823238]
[1749324409818,0.79225,2523.3,2523.2,0.00595238]
[1749324411111,0.86116172,2523.3,2523.2,0.00595238]
[1749324411818,0.86116172,2523.3,2523.2,0.79823238]
[1749324412119,0.79225,2523.3,2523.2,0.79823238]
[1749324412317,0.79225,2523.3,2523.2,0.00595238]
[1749324412812,0.79225,2523.3,2523.2,0.79823238]
[1749324414118,1.43713,2523.4,2523.3,0.79225]
[1749324414314,3.2078,2523.5,2523.4,0.79222]
[1749324414515,0.79219,2523.5,2523.2,0.00595238]
[1749324414710,0.79219,2523.5,2523.4,0.79219]
[1749324417516,0.79224,2523.4,2523.3,0.79223]
[1749324417723,1.46214,2523.4,2523.3,0.79223]
[1749324419625,0.6699,2523.4,2523.3,0.79223]
[1749324420326,1.46212,2523.4,2523.3,0.79223]
[1749324420823,0.79225,2523.3,2523.2,0.00595238]
[1749324421219,0.79225,2523.3,2523.2,0.79823238]
[1749324421528,0.86116172,2523.3,2523.2,0.79823238]
[1749324422127,0.06891172,2523.3,2523.2,0.79823238]
[1749324425428,0.06891172,2523.3,2523.2,4.00603238]
[1749324426028,0.06891172,2523.3,2523.2,9.00603238]
[1749324426419,4.621,2523.8,2523.7,0.79212]
[1749324426722,25.0,2524.0,2523.9,0.79206]
[1749324427725,25.79203,2524.0,2523.9,0.79206]
[1749324428827,25.0,2524.0,2523.9,0.79206]
[1749324439539,25.06891172,2524.0,2523.9,0.79206]
[1749324444442,25.86094172,2524.0,2523.9,0.79206]
[1749324444648,25.06891172,2524.0,2523.9,0.79206]
[1749324445042,25.86094172,2524.0,2523.9,0.79206]
[1749324445242,25.06891172,2524.0,2523.9,0.79206]
[1749324452546,26.22170311,2524.0,2523.9,0.79206]
[1749324453152,25.06891172,2524.0,2523.9,0.79206]
[1749324453354,26.22170338,2524.0,2523.9,0.79206]
[1749324454749,26.22246428,2524.0,2523.9,0.79206]
[1749324455042,27.01449428,2524.0,2523.9,0.79206]
[1749324455248,29.43026428,2524.0,2523.7,17.99]
[1749324455448,0.79209,2523.8,2523.7,18.78211]
[1749324455657,1.94564256,2523.8,2523.7,18.78211]
[1749324455951,0.79213,2523.7,2523.6,0.79214]
[1749324456149,1.94617649,2523.7,2523.6,0.79214]
[1749324456354,3.23377649,2523.7,2523.6,0.79214]
[1749324456650,0.79217,2523.6,2523.5,0.79217]
[1749324456953,3.23385709,2523.6,2523.5,0.79217]
[1749324458149,2.44168709,2523.6,2523.5,0.79217]
[1749324462557,3.23384709,2523.6,2523.5,0.79217]
[1749324463653,2.07976,2523.6,2523.5,0.79217]
[1749324463961,1.94443225,2523.6,2523.5,0.79217]
[1749324464457,0.79216,2523.6,2523.5,0.79217]
[1749324464857,1.94434601,2523.6,2523.5,0.79217]
[1749324465057,1.9443465,2523.6,2523.5,0.79217]
[1749324465454,0.79216,2523.6,2523.5,0.79217]
[1749324468966,1.43705,2523.7,2523.6,0.79216]
[1749324469168,2.58894442,2523.7,2523.6,0.79216]
[1749324472968,2.58905291,2523.7,2523.6,0.79216]
[1749324473662,0.79219,2523.6,2523.5,0.79217]
[1749324473860,1.94419291,2523.6,2523.5,0.79217]
[1749324474067,2.01310463,2523.6,2523.5,0.79217]
[1749324478169,1.22091463,2523.6,2523.3,0.6462]
[1749324478370,0.79222,2523.4,2523.3,1.43844]
[1749324479572,1.42191,2523.5,2523.4,0.79222]
[1749324479769,2.56482462,2523.5,2523.4,0.79222]
[1749324480377,0.79222,2523.4,2523.3,0.6462]
[1749324480772,0.6297,2523.5,2523.4,0.79222]
[1749324480974,1.77276868,2523.5,2523.4,0.79222]
[1749324482376,1.42189,2523.5,2523.4,0.79222]
[1749324482576,2.56531334,2523.5,2523.4,0.79222]
[1749324483068,1.77312334,2523.5,2523.4,0.79222]
[1749324483269,2.56531334,2523.5,2523.4,0.79222]
[1749324483672,2.56564418,2523.5,2523.4,0.79222]
[1749324483975,1.77345418,2523.5,2523.4,0.79222]
[1749324485277,1.8423659,2523.5,2523.4,0.79222]
[1749324485572,1.2126659,2523.5,2523.4,0.79222]
[1749324485872,1.2126659,2523.5,2523.4,2.14342]
[1749324486077,0.06891172,2523.5,2523.4,2.14342]
[1749324493375,1.22565876,2523.5,2523.4,2.14342]
[1749324493982,1.22565876,2523.5,2523.4,0.79222]
[1749324496681,1.22565876,2523.5,2523.4,2.07012]
[1749324497781,0.06891172,2523.5,2523.4,2.07012]
[1749324498088,1e-08,2523.5,2523.4,7.07012]
[1749324498485,1e-08,2523.5,2523.4,2.07012]
[1749324501684,1e-08,2523.5,2523.4,7.07012]
[1749324504088,1e-08,2523.5,2523.4,2.07012]
[1749324504281,1e-08,2523.5,2523.4,7.07012]
[1749324506985,1e-08,2523.5,2523.4,20.05212]
[1749324513996,1e-08,2523.5,2523.4,23.25992]
[1749324517595,1e-08,2523.5,2523.4,20.05212]
[1749324517894,1e-08,2523.5,2523.4,23.25992]
[1749324519501,0.6869,2523.9,2523.8,0.79209]
[1749324520195,0.6869,2523.9,2523.8,1.43459]
[1749324520695,25.0,2524.0,2523.8,1.43459]
[1749324520901,25.0,2524.0,2523.9,18.77306]
[1749324521505,25.0,2524.0,2523.7,3.8633]
[1749324521803,2.0077,2523.9,2523.8,18.77209]
[1749324526007,2.0077,2523.9,2523.8,0.79209]
[1749324526202,2.0077,2523.9,2523.8,18.77209]
[1749324527610,3.15755382,2523.9,2523.8,18.77209]
[1749324527810,2.0077,2523.9,2523.8,18.77209]
[1749324528515,3.15754717,2523.9,2523.8,18.77209]
[1749324528715,2.0077,2523.9,2523.8,18.77209]
[1749324529218,3.15761319,2523.9,2523.8,18.77209]
[1749324529614,3.15761319,2523.9,2523.8,0.79209]
[1749324529916,3.22652491,2523.9,2523.8,18.77209]
[1749324531517,3.22669903,2523.9,2523.8,18.77209]
[1749324531817,1.88769903,2523.9,2523.8,18.77209]
[1749324532023,0.73761172,2523.9,2523.8,18.77209]
[1749324534819,1.88813425,2523.9,2523.8,18.77209]
[1749324535519,0.73761172,2523.9,2523.8,18.77209]
[1749324536018,1.88817118,2523.9,2523.8,18.77209]
[1749324536527,0.73761172,2523.9,2523.8,18.77209]
[1749324537215,1.8881917,2523.9,2523.8,18.77209]
[1749324538423,0.73761172,2523.9,2523.8,18.77209]
[1749324539021,1.88820661,2523.9,2523.8,18.77209]
[1749324539721,3.25510661,2523.9,2523.8,18.77209]
[1749324540722,3.25510661,2523.9,2523.8,0.79209]
[1749324540923,3.25510661,2523.9,2523.8,18.77109]
[1749324541721,1.88820661,2523.9,2523.8,18.77109]
[1749324542622,1.88812366,2523.9,2523.8,18.77109]
[1749324543426,0.73761172,2523.9,2523.8,18.77109]
[1749324543722,1.88813634,2523.9,2523.8,18.77109]
[1749324548427,1.88815176,2523.9,2523.8,18.77109]
[1749324549928,2.68021176,2523.9,2523.8,0.79209]
[1749324550328,3.95751176,2523.9,2523.8,0.79209]
[1749324553430,3.16545176,2523.9,2523.8,0.79209]
[1749324554029,2.68021176,2523.9,2523.8,0.79209]
[1749324554528,1.88815176,2523.9,2523.8,0.79209]
[1749324555921,1.88815176,2523.9,2523.8,1.43199]
[1749324567333,2.68010341,2523.9,2523.8,1.43199]
[1749324568232,1.88804341,2523.9,2523.8,1.43199]
[1749324569135,1.88804341,2523.9,2523.8,0.79209]
[1749324569336,2.68010341,2523.9,2523.8,0.79209]
[1749324569833,1.88818893,2523.9,2523.8,0.79209]
[1749324570031,5.09598893,2523.9,2523.6,0.6498]
[1749324570236,1.94268721,2523.8,2523.7,0.79213]
[1749324570934,1.15057721,2523.8,2523.7,0.79213]
[1749324571536,0.73761172,2523.9,2523.8,0.79209]
[1749324571733,1.89572636,2523.9,2523.8,0.79209]
[1749324572236,1.89572636,2523.9,2523.8,1.46459]
[1749324577241,1.22702636,2523.9,2523.8,1.46459]
[1749324577442,1.22702636,2523.9,2523.8,2.76479]
[1749324582948,1.22702636,2523.9,2523.7,0.6541]
[1749324583143,6.40944634,2523.8,2523.2,0.00595238]
[1749324583447,0.79225,2523.3,2523.2,0.79823238]
[1749324583640,1.94509634,2523.3,2523.2,0.79823238]
[1749324583841,0.6616,2523.3,2523.2,0.79823238]
[1749324587944,3.2078,2523.4,2523.3,0.79225]
[1749324589751,1.46369,2523.5,2523.4,0.79222]
[1749324590047,2.61363575,2523.5,2523.4,0.79222]
[1749324590250,1.46369,2523.5,2523.4,0.79222]
[1749324590446,1.82143874,2523.5,2523.4,0.79222]
[1749324590750,0.6715,2523.5,2523.4,0.79222]
[1749324594746,8.59395,2523.7,2523.6,0.79216]
[1749324594942,10.39117963,2523.7,2523.6,0.79216]
[1749324600455,0.79219,2523.6,2523.5,0.79217]
[1749324600658,0.79219,2523.6,2523.4,0.6294]
[1749324600659,0.79219,2523.5,2523.4,0.79221]
[1749324603864,2.14478,2523.6,2523.5,0.79219]
[1749324604058,3.29453831,2523.6,2523.5,0.79219]
[1749324604259,3.29453847,2523.6,2523.5,0.79219]
[1749324605259,1.14975847,2523.6,2523.5,0.79219]
[1749324605562,5.74375847,2523.6,2523.5,0.79219]
[1749324605762,4.594,2523.6,2523.5,0.79219]
[1749324606063,3.8557,2523.7,2523.6,0.79216]
[1749324606263,3.2078,2523.7,2523.6,0.79216]
[1749324606465,0.06891172,2523.8,2523.7,0.79213]
[1749324606668,0.06891172,2523.8,2523.7,2.69473]
[1749324607064,29.594,2524.0,2523.9,0.79206]
[1749324607258,25.0,2524.0,2523.9,0.79206]
[1749324607959,25.0,2524.0,2523.9,2.11786]
[1749324610660,1.45549,2524.2,2523.9,2.11786]
[1749324610661,18.49748297,2524.7,2524.1,1.97996]
[1749324610865,1.77220228,2524.6,2524.5,0.79187]
[1749324611472,1.77220228,2524.6,2524.2,2.6608]
[1749324611764,0.6399,2524.6,2524.5,0.79187]
[1749324611961,1.77001425,2524.6,2524.5,0.79187]
[1749324612156,0.6399,2524.6,2524.5,0.79187]
[1749324613166,1.43174,2524.6,2524.5,0.79187]
[1749324613567,0.7919,2524.5,2524.2,1.3007]
[1749324613769,0.7919,2524.5,2524.4,0.79191]
[1749324614271,1.43177,2524.6,2524.5,0.79187]
[1749324616472,0.79189,2524.5,2524.4,0.79188]
[1749324619373,0.86080172,2524.5,2524.4,0.79188]
[1749324622180,0.06891172,2524.5,2524.4,0.79188]
[1749324622681,0.86078172,2524.5,2524.4,0.79188]
[1749324629389,0.06891172,2524.5,2524.4,0.79188]
[1749324633495,0.86078172,2524.5,2524.4,0.79188]
[1749324635590,0.79194,2524.3,2524.2,2.09264]
[1749324636092,0.79193,2524.4,2524.3,0.79191]
[1749324636897,4.06861172,2524.5,2524.4,0.79191]
[1749324637088,5.20255828,2524.5,2524.4,0.79191]
[1749324637894,0.79193,2524.4,2524.3,0.79191]
[1749324638393,1.92656128,2524.4,2524.3,0.79191]
[1749324638593,1.13463128,2524.4,2524.1,0.79198]
[1749324638788,0.79203,2524.0,2523.9,4.66003]
[1749324638988,0.79203,2524.0,2523.9,3.2078]
[1749324639189,0.79203,2524.0,2523.9,3.99986]
[1749324639597,0.79202,2524.1,2524.0,0.79201]
[1749324639894,1.92702037,2524.1,2524.0,0.79201]
[1749324640294,0.79203,2524.0,2523.9,3.2078]
[1749324640592,1.92715079,2524.0,2523.9,3.2078]
[1749324642198,0.79206,2523.9,2523.8,0.79209]
[1749324642397,1.47846,2523.9,2523.8,0.79209]
[1749324642597,0.79214,2523.7,2523.6,0.79213]
[1749324643091,8.59192,2523.8,2523.7,0.79213]
[1749324643399,0.79216,2523.6,2523.5,1.42549]
[1749324643591,0.79216,2523.6,2523.5,0.6333]
[1749324643898,7.7998,2523.8,2523.4,3.2078]
[1749324644096,0.79217,2523.6,2523.5,0.79217]
[1749324646598,11.04417,2523.8,2523.3,1.3584]
[1749324646792,1.44141,2523.5,2523.4,0.7922]
[1749324647190,4.64921,2523.5,2523.4,0.7922]
[1749324649303,0.79222,2523.4,2523.3,1.3584]
[1749324649502,0.79225,2523.3,2523.2,0.00595238]
[1749324650003,0.79224,2523.4,2523.3,0.79223]
[1749324650302,0.79225,2523.3,2523.2,0.79821238]
[1749324651305,0.79225,2523.3,2523.2,0.00595238]
[1749324651796,0.79225,2523.3,2523.2,0.79823238]
[1749324652504,0.79225,2523.3,2523.2,0.00595238]
[1749324652703,0.79225,2523.3,2523.2,0.79823238]
[1749324652902,0.79225,2523.3,2523.2,0.00595238]
[1749324653902,0.79225,2523.3,2523.2,0.79823238]
[1749324654693,0.79225,2523.3,2523.2,0.00595238]
[1749324655098,0.79225,2523.3,2523.2,0.79823238]
[1749324655507,0.79225,2523.3,2523.2,0.00595238]
[1749324655900,2.07395,2523.3,2523.2,0.00595238]
[1749324660398,0.79241,2522.8,2522.7,0.6953]
[1749324660600,0.79253,2522.4,2522.3,1.3822]
[1749324660806,0.79253,2522.4,2522.3,2.17476]
[1749324660999,0.79253,2522.4,2522.3,2.82296]
[1749324661604,0.79252,2522.5,2522.4,0.7925]
[1749324661906,0.79252,2522.5,2522.4,0.79252]
[1749324663312,0.79253,2522.4,2522.3,2.82294]
[1749324663610,0.79253,2522.5,2522.4,0.79252]
[1749324663905,0.79253,2522.4,2522.3,2.82294]
[1749324664110,0.79253,2522.4,2522.3,0.6482]
[1749324664409,0.79253,2522.4,2522.3,1.44077]
[1749324664600,0.79252,2522.5,2522.3,0.6482]
[1749324664804,0.79252,2522.5,2522.4,0.79252]
[1749324665912,0.86143172,2522.5,2522.4,0.79252]
[1749324667112,0.79253,2522.4,2522.3,1.44075]
[1749324667412,0.86143172,2522.5,2522.4,0.79253]
[1749324678914,0.79253,2522.4,2522.3,0.6482]
[1749324679117,0.79257,2522.3,2522.2,0.6451]
[1749324679309,1.43937,2522.3,2522.2,0.6451]
[1749324679511,4.64717,2522.3,2522.2,0.6451]
[1749324679815,0.7926,2522.2,2522.1,0.00595238]
[1749324680011,5.3866,2522.2,2522.1,0.00595238]
[1749324681217,6.5172687,2522.2,2522.1,0.00595238]
[1749324682814,0.79274,2521.8,2521.7,0.79273]
[1749324683014,0.79274,2521.8,2521.7,1.46653]
[1749324683213,0.79271,2521.9,2521.8,0.7927]
[1749324683513,0.79272,2521.8,2521.7,0.6738]
[1749324683718,6.05742,2521.8,2521.7,0.6738]
[1749324685018,0.79275,2521.7,2521.6,0.6738]
[1749324685220,0.79279,2521.6,2521.5,0.00595238]
[1749324685518,4.00059,2521.6,2521.5,0.00595238]
[1749324685715,5.1312145,2521.6,2521.5,0.00595238]
[1749324685918,5.13121585,2521.6,2521.5,0.00595238]
[1749324686615,0.79288,2521.3,2521.2,0.6802]
[1749324686819,8.59468,2521.3,2521.2,0.6802]
[1749324688923,8.59468,2521.3,2521.2,1.47311]
[1749324689329,3.2078,2521.3,2521.2,1.47311]
[1749324689627,7.8028,2521.3,2521.2,1.47311]
[1749324690925,3.2078,2521.3,2521.2,1.47311]
[1749324691218,0.632,2521.7,2521.2,1.47311]
[1749324691219,4.595,2521.4,2521.3,0.79288]
[1749324691726,5.38785,2521.4,2521.3,0.79288]
[1749324692621,4.595,2521.4,2521.3,0.79288]
[1749324695116,4.595,2521.4,2521.3,2.07418]
[1749324701433,28.576,2521.8,2521.7,0.79275]
[1749324701628,29.36872,2521.8,2521.7,0.79275]
[1749324702326,28.576,2521.8,2521.7,0.79275]
[1749324703131,29.264,2521.8,2521.7,0.79275]
[1749324703629,30.05672,2521.8,2521.7,0.79275]
[1749324708534,29.264,2521.8,2521.7,0.79275]
[1749324708734,28.576,2521.8,2521.7,0.79275]
[1749324710036,28.576,2521.8,2521.7,2.07815]
[1749324712737,28.576,2521.8,2521.7,2.74695]
[1749324713437,4.595,2521.8,2521.7,2.74695]
[1749324715237,4.595,2521.8,2521.7,1.46155]
[1749324717039,5.38772,2521.8,2521.7,1.46155]
[1749324717238,4.595,2521.8,2521.7,1.46155]
[1749324721241,1.47627,2522.0,2521.7,0.6688]
[1749324721439,5.72682719,2521.9,2521.8,0.79272]
[1749324721639,5.72682719,2521.9,2521.8,2.09452]
[1749324721840,1.47627,2522.0,2521.9,0.79269]
[1749324722040,1.12258606,2522.0,2521.9,0.79269]
[1749324722242,4.604,2522.1,2521.8,6.4914]
[1749324722442,4.604,2522.1,2522.0,0.79266]
[1749324722944,0.79262,2522.2,2522.1,0.79261]
[1749324723843,0.7927,2521.9,2521.8,0.7927]
[1749324724544,1.4486,2521.9,2521.8,0.7927]
[1749324725545,0.6559,2521.9,2521.8,0.7927]
[1749324727245,0.79272,2521.8,2521.7,1.46154]
[1749324728250,1.44861,2521.9,2521.8,0.79272]
[1749324730449,2.57156452,2521.9,2521.8,0.79272]
[1749324731456,2.57156071,2521.9,2521.8,0.79272]
[1749324731957,2.57156071,2521.9,2521.7,0.6688]
[1749324731958,0.79272,2521.8,2521.7,0.6688]
[1749324732451,0.79272,2521.8,2521.7,1.46155]
[1749324732850,0.79272,2521.8,2521.7,0.79275]
[1749324733054,0.79275,2521.7,2521.6,1.45407]
[1749324734856,0.79275,2521.7,2521.5,2.0644]
[1749324734857,0.79287,2521.4,2521.3,0.79286]
[1749324735061,0.79285,2521.5,2521.4,0.79283]
[1749324735356,0.79287,2521.4,2521.3,0.79285]
[1749324737362,5.39583,2521.5,2521.4,0.79285]
[1749324738257,4.603,2521.5,2521.4,0.79285]
[1749324744958,5.39582,2521.5,2521.4,0.79285]
[1749324745470,0.79287,2521.4,2521.3,0.79286]
[1749324745659,0.6577,2521.4,2521.1,1.3175]
[1749324745863,0.79291,2521.3,2521.2,0.7929]
[1749324746063,0.79289,2521.3,2521.2,0.79288]
[1749324746769,4.65836,2521.4,2521.3,0.79288]
[1749324748061,4.72727172,2521.4,2521.3,0.79288]
[1749324750364,0.06891172,2521.4,2521.3,0.79288]
[1749324750968,0.06891172,2521.4,2521.3,4.00068]
[1749324751168,4.595,2521.7,2521.5,0.79278]
[1749324751369,4.595,2521.7,2521.6,1.2717]
[1749324751667,4.595,2521.7,2521.6,2.06448]
[1749324752772,4.00048,2522.0,2521.6,1.2717]
[1749324752960,4.00048,2522.0,2521.7,2.17943]
[1749324752961,6.50961988,2521.9,2521.7,2.17943]
[1749324753162,5.3877,2521.9,2521.7,2.17943]
[1749324754064,4.595,2521.9,2521.7,2.17943]
[1749324754473,5.38769,2521.9,2521.7,1.3867]
[1749324755169,0.79272,2521.8,2521.6,1.2717]
[1749324756374,4.595,2521.9,2521.3,3.2078]
[1749324756571,0.79288,2521.3,2521.2,0.6804]
[1749324756775,3.2078,2521.4,2521.1,0.6695]
[1749324756776,0.79291,2521.2,2521.1,0.6695]
[1749324756966,0.79294,2521.1,2521.0,0.68635238]
[1749324757277,5.38794,2521.1,2521.0,0.00595238]
[1749324757674,9.72050284,2521.1,2521.0,0.00595238]
[1749324757876,11.09570284,2521.1,2521.0,0.00595238]
[1749324760071,0.79307,2520.7,2520.2,3.2078]
[1749324760271,0.79307,2520.7,2520.4,0.79314]
[1749324760672,1.47367,2520.7,2520.4,0.79314]
[1749324761271,0.6806,2520.7,2520.5,0.79313]
[1749324761474,0.79314,2520.5,2520.3,1.36875238]
[1749324761674,0.79311,2520.6,2520.3,2.16193238]
[1749324761875,3.2078,2520.8,2520.3,2.65595238]
[1749324762075,7.8038,2520.8,2520.3,2.65595238]
[1749324762576,7.8038,2520.8,2520.7,0.79307]
[1749324763780,4.596,2520.8,2520.7,0.79307]
[1749324764382,0.6806,2521.1,2520.5,6.47349]
[1749324764582,0.6806,2521.1,2521.0,0.79297]
[1749324764783,5.2766,2521.1,2521.0,0.79297]
[1749324764983,5.2766,2521.1,2520.9,0.79298]
[1749324765977,0.6806,2521.1,2520.9,0.79298]
[1749324766177,4.596,2521.0,2520.9,0.79298]
[1749324773186,0.00595238,2521.3,2521.1,0.79291]
[1749324773389,0.00595238,2521.3,2521.2,0.79291]
[1749324773691,0.00595238,2521.3,2521.2,4.00071]
[1749324776096,0.00595238,2521.3,2521.2,9.00071]
[1749324776592,0.00595238,2521.3,2521.2,10.29011]
[1749324780500,0.00595238,2521.3,2521.2,4.00071]
[1749324781092,0.00595238,2521.3,2521.2,0.79291]
[1749324785602,0.00595238,2521.3,2521.2,1.43001]
[1749324786001,0.00595238,2521.3,2521.2,2.81891]
[1749324788699,0.00595238,2521.3,2521.1,0.79292]
[1749324788904,0.00595238,2521.3,2521.0,0.6939]
[1749324789204,0.79293,2521.2,2521.0,1.48684]
[1749324789500,1.42464,2521.1,2521.0,0.79294]
[1749324789699,0.6317,2521.1,2521.0,0.79294]
[1749324790200,0.6317,2521.1,2520.9,4.00079]
[1749324790398,0.6317,2521.1,2521.0,0.79297]
[1749324790399,1.9656,2521.1,2521.0,0.79297]
[1749324791901,1.9656,2521.1,2520.8,1.3497]
[1749324792100,2.75855,2521.1,2520.9,0.79298]
[1749324793301,2.75855,2521.1,2521.0,0.79297]
[1749324794607,1.9656,2521.1,2520.6,1.98271]
[1749324794806,0.793,2520.9,2520.7,0.79303]
[1749324795102,0.793,2520.9,2520.8,0.79302]
[1749324795305,0.79296,2521.0,2520.8,0.79302]
[1749324795506,2.13076,2521.0,2520.8,0.79302]
[1749324795703,2.13076,2521.0,2520.9,0.79297]
[1749324795900,6.73176,2521.0,2520.9,0.79297]
[1749324797209,0.79297,2520.9,2520.8,0.79299]
[1749324797505,6.73176,2521.0,2520.9,0.79297]
[1749324800110,5.9388,2521.0,2520.9,0.79297]
[1749324803724,4.601,2521.0,2520.9,0.79297]
[1749324804631,1.42464,2521.1,2521.0,0.79294]
[1749324804927,7.17676812,2521.1,2521.0,0.79294]
[1749324805415,7.1767473,2521.1,2521.0,0.79294]
[1749324805812,8.4977473,2521.1,2521.0,0.79294]
[1749324807626,8.4977473,2521.1,2520.9,0.79296]
[1749324807919,7.37364,2521.1,2521.0,0.79294]
[1749324808217,8.49777153,2521.1,2521.0,0.79294]
[1749324808820,0.79294,2521.0,2520.9,0.79295]
[1749324810423,6.5807,2521.1,2520.6,3.32456]
[1749324810725,0.79298,2520.9,2520.8,0.79298]
[1749324810927,0.79296,2521.0,2520.9,0.79296]
[1749324813731,1.91572595,2521.0,2520.9,0.79296]
[1749324813928,0.79296,2521.0,2520.9,0.79296]
[1749324814132,1.42463,2521.1,2521.0,0.79294]
[1749324814332,0.79295,2521.0,2520.9,0.79296]
[1749324816725,0.6317,2521.1,2521.0,0.79294]
[1749324816924,4.628,2521.2,2521.1,0.79291]
[1749324817128,5.75039835,2521.2,2521.1,0.79291]
[1749324818028,6.54327835,2521.2,2521.1,0.79291]